bitfinex-derivatives/quotes_BTCF0:USTF0_20250805
["timestamp","ask_amount","ask_price","bid_price","bid_amount"]
[1754429935447,2.9781,113850.0,113840.0,2.0423651]
[1754429937145,2.9781,113850.0,113840.0,1.6815651]
[1754429937444,3.00191,113850.0,113840.0,1.6815651]
[1754429940345,2.96903,113850.0,113840.0,1.6815651]
[1754429940644,3.00191,113850.0,113840.0,1.6815651]
[1754429941745,3.00191,113850.0,113840.0,2.0423651]
[1754429942446,2.9781,113850.0,113840.0,2.0423651]
[1754429943448,3.00191,113850.0,113840.0,2.0423651]
[1754429944250,3.00191,113850.0,113840.0,1.6815651]
[1754429944550,3.00191,113850.0,113840.0,2.0423651]
[1754429946150,2.9781,113850.0,113840.0,2.0423651]
[1754429946955,2.9781,113850.0,113840.0,2.0443651]
[1754429947254,2.9781,113850.0,113840.0,2.0473651]
[1754429948954,2.9781,113850.0,113840.0,1.6865651]
[1754429950860,3.00191,113850.0,113840.0,1.6865651]
[1754429956064,3.00191,113850.0,113840.0,2.0473651]
[1754429957063,3.00191,113850.0,113840.0,2.9011651]
[1754429964069,3.00191,113850.0,113840.0,3.2619651]
[1754429964569,3.00191,113850.0,113840.0,2.9011651]
[1754429965968,3.00191,113850.0,113840.0,3.2619651]
[1754429966265,3.00191,113850.0,113840.0,2.9011651]
[1754429968463,3.00191,113850.0,113840.0,3.2619651]
[1754429969270,3.00191,113850.0,113840.0,2.9006051]
[1754429971076,4.0632195,113850.0,113840.0,2.5188451]
[1754429971272,3.5384033,113850.0,113840.0,2.5188451]
[1754429971569,3.5384033,113850.0,113840.0,2.5430351]
[1754429971770,3.5382596,113850.0,113840.0,2.5430351]
[1754429971963,3.5382596,113850.0,113840.0,2.5400351]
[1754429972164,3.5382596,113850.0,113840.0,2.5410351]
[1754429972771,3.5382596,113850.0,113840.0,2.5400351]
[1754429972972,3.5382596,113850.0,113840.0,2.5410351]
[1754429973167,4.0630758,113850.0,113840.0,1.2196]
[1754429973370,4.587892,113850.0,113840.0,0.60172]
[1754429973570,4.0630758,113850.0,113840.0,0.60172]
[1754429973768,0.2896387,113840.0,113830.0,2.01089616]
[1754429973972,1.1752549,113840.0,113830.0,2.08279996]
[1754429974474,1.1752549,113840.0,113830.0,2.07422]
[1754429974868,1.1752549,113840.0,113830.0,2.0828529]
[1754429975072,1.1752549,113840.0,113830.0,2.07422]
[1754429975369,1.1752549,113840.0,113830.0,1.2146]
[1754429975568,0.2896541,113830.0,113820.0,0.82141646]
[1754429975774,1.1752703,113830.0,113820.0,1.41813646]
[1754429975962,1.1752703,113830.0,113820.0,1.37420216]
[1754429977375,1.1782703,113830.0,113820.0,1.40856216]
[1754429977574,1.1782703,113830.0,113820.0,1.37420216]
[1754429977770,0.2145096,113820.0,113810.0,2.0030371]
[1754429977977,1.1752858,113820.0,113810.0,2.6239871]
[1754429978375,1.1752858,113820.0,113810.0,2.63263835]
[1754429978596,1.1752858,113820.0,113810.0,2.66699835]
[1754429978769,1.1772858,113820.0,113810.0,2.68072835]
[1754429979976,1.1772858,113820.0,113810.0,2.68172835]
[1754429985580,1.1772858,113820.0,113810.0,2.15691215]
[1754429987583,1.1772858,113820.0,113810.0,2.09924385]
[1754429987784,1.1772858,113820.0,113810.0,2.11297385]
[1754429989087,1.1772858,113820.0,113810.0,0.10846]
[1754429989286,1.1772858,113820.0,113810.0,0.62199]
[1754429989584,1.702102,113820.0,113810.0,0.62199]
[1754429989779,1.1772858,113820.0,113810.0,0.66569]
[1754429989979,4.620102,113820.0,113810.0,0.66569]
[1754429990686,4.0952858,113820.0,113810.0,0.66569]
[1754429991389,4.620102,113820.0,113810.0,0.66569]
[1754429991984,4.10395624,113820.0,113810.0,0.66569]
[1754429992183,4.0952858,113820.0,113810.0,0.8414453]
[1754429995596,4.0952858,113820.0,113810.0,0.8558253]
[1754429995897,4.0952858,113820.0,113810.0,0.8717753]
[1754429996395,4.0952858,113820.0,113810.0,0.8938153]
[1754429997095,4.0952858,113820.0,113810.0,0.5978]
[1754429997293,4.0952858,113820.0,113810.0,0.7735552]
[1754429997693,4.0952858,113820.0,113810.0,0.7978852]
[1754429999697,4.620102,113820.0,113810.0,0.7978852]
[1754430000196,3.5704696,113820.0,113810.0,1.2983714]
[1754430000386,3.5369196,113820.0,113810.0,0.8452852]
[1754430000692,4.0299158,113820.0,113810.0,1.4171714]
[1754430000900,3.5050996,113820.0,113810.0,0.8923552]
[1754430001191,4.0944658,113820.0,113810.0,0.8779752]
[1754430001699,4.0944658,113820.0,113810.0,0.8923552]
[1754430003092,4.0944658,113820.0,113810.0,0.59784]
[1754430003293,4.619282,113820.0,113810.0,0.59784]
[1754430004396,4.619282,113820.0,113810.0,0.62217]
[1754430005503,4.619282,113820.0,113810.0,0.7979254]
[1754430005905,4.619282,113820.0,113810.0,0.2010854]
[1754430006102,4.619282,113820.0,113810.0,0.7979254]
[1754430007703,4.980082,113820.0,113810.0,0.7979254]
[1754430011307,4.980082,113820.0,113810.0,0.7735954]
[1754430012404,4.980082,113820.0,113810.0,0.7979254]
[1754430016116,3.9304496,113820.0,113810.0,0.7979254]
[1754430016311,4.980082,113820.0,113810.0,0.7979254]
[1754430021715,4.980082,113820.0,113810.0,0.7988054]
[1754430035422,4.980082,113820.0,113810.0,0.8399254]
[1754430040819,4.980082,113820.0,113810.0,0.59872]
[1754430041023,0.2071753,113810.0,113800.0,0.00071625]
[1754430041231,1.1336815,113810.0,113800.0,0.59851625]
[1754430042232,1.1336815,113810.0,113800.0,0.60051625]
[1754430042530,1.1336815,113810.0,113800.0,0.60151625]
[1754430042928,1.6584977,113810.0,113800.0,0.60151625]
[1754430043131,1.1336815,113810.0,113800.0,0.60151625]
[1754430043731,1.1346815,113810.0,113800.0,0.60051625]
[1754430044834,1.1346815,113810.0,113800.0,0.59951625]
[1754430045235,3.3094815,113810.0,113800.0,0.59951625]
[1754430045733,3.3094815,113810.0,113800.0,0.62253625]
[1754430045934,3.3094815,113810.0,113800.0,0.59851625]
[1754430046232,3.3094815,113810.0,113800.0,0.62253625]
[1754430054630,3.8342977,113810.0,113800.0,0.59851625]
[1754430055040,3.8342977,113810.0,113800.0,0.62319625]
[1754430056045,3.3094815,113810.0,113800.0,0.62319625]
[1754430056834,3.8342977,113810.0,113800.0,0.59851625]
[1754430057337,3.8342977,113810.0,113800.0,0.62319625]
[1754430059642,4.4319777,113810.0,113800.0,0.00071625]
[1754430060042,4.45718726,113810.0,113800.0,0.00071625]
[1754430060341,4.4319777,113810.0,113800.0,0.00071625]
[1754430060641,4.45718726,113810.0,113800.0,0.00071625]
[1754430062142,4.4319777,113810.0,113800.0,0.00071625]
[1754430063641,4.6077137,113810.0,113800.0,0.00071625]
[1754430068547,4.4319777,113810.0,113800.0,0.00071625]
[1754430069647,4.45714761,113810.0,113800.0,0.00071625]
[1754430070248,4.4319777,113810.0,113800.0,0.00071625]
[1754430070448,4.45714825,113810.0,113800.0,0.00071625]
[1754430072854,4.45714825,113810.0,113800.0,5e-08]
[1754430073652,4.63288425,113810.0,113800.0,5e-08]
[1754430075952,0.1757848,113790.0,113780.0,0.00945]
[1754430076146,1.9974372,113790.0,113780.0,0.11734]
[1754430077153,1.9974372,113790.0,113780.0,0.11834]
[1754430078254,1.9974372,113790.0,113780.0,0.07264]
[1754430079046,1.9974372,113790.0,113780.0,0.11834]
[1754430079654,2.00618498,113790.0,113780.0,0.11834]
[1754430085260,2.03135583,113790.0,113780.0,0.11834]
[1754430085952,2.03135583,113790.0,113780.0,0.04175]
[1754430093862,2.00618498,113790.0,113780.0,0.04175]
[1754430095163,2.03137501,113790.0,113780.0,0.04175]
[1754430095357,0.91577258,113790.0,113780.0,0.12296]
[1754430095656,1.422201,113790.0,113780.0,1.1235764]
[1754430095862,1.422201,113790.0,113780.0,1.7208164]
[1754430096164,0.8973848,113790.0,113780.0,1.1960002]
[1754430096361,1.422201,113790.0,113780.0,1.1960002]
[1754430096560,1.422201,113790.0,113780.0,1.7208164]
[1754430098856,4.422201,113790.0,113780.0,1.7208164]
[1754430099961,4.422201,113790.0,113780.0,0.8960002]
[1754430101862,4.422201,113790.0,113780.0,1.4208164]
[1754430103365,4.422201,113790.0,113780.0,0.8960002]
[1754430104066,4.454021,113790.0,113780.0,0.8960002]
[1754430105360,4.463091,113790.0,113780.0,0.8960002]
[1754430112267,4.9879072,113790.0,113780.0,0.8960002]
[1754430144202,4.9879072,113790.0,113780.0,0.8469802]
[1754430145102,4.9879072,113790.0,113780.0,0.7987202]
[1754430145291,4.9879072,113790.0,113780.0,0.8138302]
[1754430145602,4.9879072,113790.0,113780.0,0.8236202]
[1754430146605,4.9879072,113790.0,113780.0,0.8944902]
[1754430156610,4.2663072,113790.0,113780.0,0.8944902]
[1754430156912,4.9879072,113790.0,113780.0,0.8944902]
[1754430161612,4.2663072,113790.0,113780.0,0.8944902]
[1754430161917,4.9879072,113790.0,113780.0,0.8944902]
[1754430163718,4.2663072,113790.0,113780.0,0.8944902]
[1754430163916,4.9879072,113790.0,113780.0,0.8944902]
[1754430167727,4.9879072,113790.0,113780.0,0.8468102]
[1754430176520,4.9879072,113790.0,113780.0,0.8799402]
[1754430179924,4.9879072,113790.0,113780.0,0.8944602]
[1754430180323,4.2663072,113790.0,113780.0,0.8944602]
[1754430180524,4.9879072,113790.0,113780.0,0.8944602]
[1754430180725,4.9879072,113790.0,113780.0,0.8468102]
[1754430181126,4.9879072,113790.0,113780.0,0.8944602]
[1754430193436,4.9879072,113790.0,113780.0,0.8799402]
[1754430194944,4.9879072,113790.0,113780.0,0.8468102]
[1754430203054,4.2663072,113790.0,113780.0,0.8468102]
[1754430203353,4.9879072,113790.0,113780.0,0.8468102]
[1754430209948,4.2663072,113790.0,113780.0,0.8468102]
[1754430210254,4.9879072,113790.0,113780.0,0.8468102]
[1754430213859,4.9879072,113790.0,113780.0,0.1768002]
[1754430214060,4.9879072,113790.0,113780.0,0.7968802]
[1754430222167,4.463091,113790.0,113780.0,0.8441802]
[1754430222366,4.463091,113790.0,113780.0,0.8931602]
[1754430222563,4.9879072,113790.0,113780.0,0.8931602]
[1754430227675,4.9879072,113790.0,113780.0,0.7736002]
[1754430228074,4.9879072,113790.0,113780.0,0.7968802]
[1754430232273,4.9879072,113790.0,113780.0,0.8445902]
[1754430233183,4.9879072,113790.0,113780.0,0.7968802]
[1754430233382,4.9879072,113790.0,113780.0,0.7963702]
[1754430233574,4.9879072,113790.0,113780.0,0.7736002]
[1754430233771,0.2062403,113780.0,113770.0,0.4387015]
[1754430233976,1.1317565,113780.0,113770.0,1.0581657]
[1754430234375,1.1317565,113780.0,113770.0,0.88235]
[1754430234884,1.1317565,113780.0,113770.0,1.0601658]
[1754430235685,1.14058547,113780.0,113770.0,1.0601658]
[1754430236079,1.14058547,113780.0,113770.0,1.0621658]
[1754430237086,1.14058547,113780.0,113770.0,0.88635]
[1754430237388,1.14058547,113780.0,113770.0,1.0621657]
[1754430237891,1.1317565,113780.0,113770.0,1.0621657]
[1754430239588,1.14051702,113780.0,113770.0,1.0621657]
[1754430239790,1.14051702,113780.0,113770.0,0.62345]
[1754430239992,1.14051702,113780.0,113770.0,0.7992655]
[1754430240191,1.14051702,113780.0,113770.0,0.62345]
[1754430240492,1.14051702,113780.0,113770.0,0.7992655]
[1754430242995,1.14051702,113780.0,113770.0,0.62345]
[1754430244691,1.1317565,113780.0,113770.0,0.8149255]
[1754430245791,2.8693565,113780.0,113770.0,0.8149255]
[1754430246887,2.8693565,113780.0,113770.0,0.8245855]
[1754430247392,3.2301565,113780.0,113770.0,0.8245855]
[1754430250196,3.2301565,113780.0,113770.0,0.64877]
[1754430250789,3.2301565,113780.0,113770.0,0.8245855]
[1754430251191,3.2301565,113780.0,113770.0,0.64877]
[1754430253400,3.2301565,113780.0,113770.0,0.8245854]
[1754430253600,3.2301565,113780.0,113770.0,0.64877]
[1754430253800,3.2301565,113780.0,113770.0,0.60068]
[1754430254491,2.7053403,113780.0,113770.0,0.62345]
[1754430254688,3.2301565,113780.0,113770.0,0.62345]
[1754430267008,3.2301565,113780.0,113770.0,0.63971]
[1754430268507,3.2301565,113780.0,113770.0,0.64951]
[1754430272606,3.2301565,113780.0,113770.0,0.68322]
[1754430272806,3.2301565,113780.0,113770.0,0.69683]
[1754430273007,3.2301565,113780.0,113770.0,0.68322]
[1754430273305,3.2301565,113780.0,113770.0,0.62336]
[1754430279210,3.2301565,113780.0,113770.0,0.004]
[1754430279415,4.3515727,113780.0,113770.0,0.004]
[1754430279708,1.7463956,113770.0,113760.0,0.61928]
[1754430279908,3.156828,113770.0,113760.0,0.5966]
[1754430280301,0.2065112,113760.0,113750.0,0.02268]
[1754430280511,1.6568436,113760.0,113750.0,0.61928]
[1754430280708,0.2464267,113750.0,113740.0,1.48658277]
[1754430280908,1.1320429,113750.0,113740.0,2.05877585]
[1754430281214,1.1320429,113750.0,113740.0,1.83559625]
[1754430281415,1.1320429,113750.0,113740.0,1.23899625]
[1754430281607,1.1320429,113750.0,113740.0,1.83559625]
[1754430281802,3.9960429,113750.0,113740.0,1.83555625]
[1754430282008,3.9960429,113750.0,113740.0,1.83855625]
[1754430282207,3.9960429,113750.0,113740.0,1.83859625]
[1754430282616,3.9960429,113750.0,113740.0,1.84259625]
[1754430282807,3.9960429,113750.0,113740.0,1.84159625]
[1754430284218,3.9960429,113750.0,113740.0,1.83859625]
[1754430284418,4.00486148,113750.0,113740.0,1.83859625]
[1754430285015,4.00486148,113750.0,113740.0,1.87230625]
[1754430285217,4.00486148,113750.0,113740.0,0.62299625]
[1754430290524,4.00486148,113750.0,113740.0,0.60031625]
[1754430291219,4.00486148,113750.0,113740.0,0.62299625]
[1754430307122,4.52967768,113750.0,113740.0,0.60031625]
[1754430307326,4.00486148,113750.0,113740.0,0.62386625]
[1754430309929,4.00486148,113750.0,113740.0,0.62286625]
[1754430322440,4.00486148,113750.0,113740.0,0.59931625]
[1754430322744,4.00486148,113750.0,113740.0,0.62338625]
[1754430323132,3.64406148,113750.0,113740.0,0.62338625]
[1754430323337,4.36566148,113750.0,113740.0,0.62338625]
[1754430326746,0.2464173,113730.0,113720.0,0.3047127]
[1754430327051,2.0176497,113730.0,113720.0,0.9331827]
[1754430327745,2.0176497,113730.0,113720.0,0.9361827]
[1754430328049,2.0176497,113730.0,113720.0,0.9401827]
[1754430333155,2.0176497,113730.0,113720.0,0.8962102]
[1754430333857,2.0176497,113730.0,113720.0,0.72033]
[1754430336256,2.0176497,113730.0,113720.0,0.8942226]
[1754430337152,2.0176497,113730.0,113720.0,0.8912226]
[1754430337357,2.0176497,113730.0,113720.0,0.8922226]
[1754430346064,1.2960497,113730.0,113720.0,0.8922226]
[1754430346362,2.0176497,113730.0,113720.0,0.8922226]
[1754430353074,1.2960497,113730.0,113720.0,0.8922226]
[1754430353372,2.0176497,113730.0,113720.0,0.8922226]
[1754430362576,1.4928335,113730.0,113720.0,0.8922226]
[1754430363876,2.0176497,113730.0,113720.0,0.8922226]
[1754430365785,2.0176497,113730.0,113720.0,0.8932026]
[1754430370985,2.0176497,113730.0,113720.0,0.7753726]
[1754430371387,2.0176497,113730.0,113720.0,0.7998726]
[1754430371978,2.0176497,113730.0,113720.0,0.8161626]
[1754430372287,2.0176497,113730.0,113720.0,0.8254226]
[1754430372784,2.0176497,113730.0,113720.0,0.62398]
[1754430372982,2.0176497,113730.0,113720.0,0.59948]
[1754430373480,2.0176497,113730.0,113720.0,0.62398]
[1754430379391,2.0176497,113730.0,113720.0,0.64027]
[1754430379797,2.0176497,113730.0,113720.0,0.64953]
[1754430381297,2.0176497,113730.0,113720.0,0.67277]
[1754430381500,2.0176497,113730.0,113720.0,0.71938]
[1754430381998,2.0176497,113730.0,113720.0,0.10835]
[1754430382198,2.0176497,113730.0,113720.0,0.67257]
[1754430382787,2.0176497,113730.0,113720.0,0.67057]
[1754430383299,2.0176497,113730.0,113720.0,0.62103]
[1754430385702,4.4431497,113730.0,113720.0,0.62103]
[1754430388505,4.4431497,113730.0,113720.0,0.59728]
[1754430388803,4.4431497,113730.0,113720.0,0.62103]
[1754430397205,4.4431497,113730.0,113720.0,0.59728]
[1754430398206,4.4431497,113730.0,113720.0,0.62103]
[1754430399099,4.4431497,113730.0,113720.0,0.001]
[1754430399302,0.3795987,113710.0,113700.0,0.12048]
[1754430399499,1.6699953,113710.0,113700.0,0.71672]
[1754430400401,1.6699953,113710.0,113700.0,0.71972]
[1754430400603,1.67882484,113710.0,113700.0,0.71972]
[1754430400805,1.67882484,113710.0,113700.0,0.72172]
[1754430402208,1.66975484,113710.0,113700.0,0.67285]
[1754430402510,1.67882484,113710.0,113700.0,0.67285]
[1754430403109,1.67882484,113710.0,113700.0,0.70764]
[1754430403306,1.67882484,113710.0,113700.0,0.72172]
[1754430405104,4.67882484,113710.0,113700.0,0.72172]
[1754430415616,5.20364104,113710.0,113700.0,0.72172]
[1754430415818,5.20364104,113710.0,113700.0,0.72072]
[1754430416117,4.67882484,113710.0,113700.0,0.71972]
[1754430416419,4.6203153,113710.0,113700.0,0.71972]
[1754430416621,4.6602153,113710.0,113700.0,0.71972]
[1754430417822,5.1850315,113710.0,113700.0,0.71972]
[1754430418023,4.6602153,113710.0,113700.0,0.71972]
[1754430420124,4.6602153,113710.0,113700.0,0.67085]
[1754430420822,4.66920165,113710.0,113700.0,0.67085]
[1754430421024,4.66920165,113710.0,113700.0,0.63863]
[1754430421224,5.19401785,113710.0,113700.0,0.62199]
[1754430422734,5.19401785,113710.0,113700.0,0.61999]
[1754430424829,5.26539376,113710.0,113700.0,0.61999]
[1754430436041,4.54379376,113710.0,113700.0,0.61999]
[1754430436339,5.26539376,113710.0,113700.0,0.61999]
[1754430459660,4.54379376,113710.0,113700.0,0.61999]
[1754430459856,5.26539376,113710.0,113700.0,0.61999]
[1754430465466,5.26539376,113710.0,113700.0,0.59624]
[1754430465863,5.26539376,113710.0,113700.0,0.62081]
[1754430466457,0.2079881,113690.0,113680.0,0.09423856]
[1754430466662,1.4943043,113690.0,113680.0,0.72356856]
[1754430466958,1.4943043,113690.0,113680.0,0.71498625]
[1754430468066,1.4943043,113690.0,113680.0,0.71698625]
[1754430468463,1.4943043,113690.0,113680.0,0.71998625]
[1754430469973,1.4943043,113690.0,113680.0,0.89593985]
[1754430474069,1.4943043,113690.0,113680.0,0.89593975]
[1754430475168,1.4943043,113690.0,113680.0,0.71998625]
[1754430475567,4.4933043,113690.0,113680.0,0.71998625]
[1754430479876,4.4933043,113690.0,113680.0,0.89593985]
[1754430486278,4.4933043,113690.0,113680.0,0.80235985]
[1754430487280,4.4933043,113690.0,113680.0,0.77778985]
[1754430488482,4.4933043,113690.0,113680.0,0.80195985]
[1754430493082,4.4933043,113690.0,113680.0,0.81759985]
[1754430493784,4.4933043,113690.0,113680.0,0.64164625]
[1754430493985,4.4933043,113690.0,113680.0,0.81759945]
[1754430495693,3.9684881,113690.0,113680.0,0.81759945]
[1754430495983,4.4933043,113690.0,113680.0,0.81759945]
[1754430500485,4.4933043,113690.0,113680.0,0.82751945]
[1754430501181,4.4933043,113690.0,113680.0,0.80195945]
[1754430502284,4.4933043,113690.0,113680.0,0.84809945]
[1754430511896,4.4933043,113690.0,113680.0,0.82664945]
[1754430512090,4.4933043,113690.0,113680.0,0.81759945]
[1754430515801,4.4933043,113690.0,113680.0,0.82664945]
[1754430518098,4.4933043,113690.0,113680.0,0.89510945]
[1754430518500,4.4933043,113690.0,113680.0,0.81759945]
[1754430520902,4.4933043,113690.0,113680.0,0.82664945]
[1754430521801,4.4933043,113690.0,113680.0,0.84771945]
[1754430522110,4.4933043,113690.0,113680.0,0.88075945]
[1754430522404,4.4933043,113690.0,113680.0,0.84771945]
[1754430525613,4.4933043,113690.0,113680.0,0.89510945]
[1754430528607,4.4933043,113690.0,113680.0,0.77778925]
[1754430528813,4.4933043,113690.0,113680.0,0.80155925]
[1754430529112,4.4933043,113690.0,113680.0,0.60183625]
[1754430529409,4.4933043,113690.0,113680.0,0.60259625]
[1754430530104,5.0181205,113690.0,113680.0,0.60259625]
[1754430530310,4.4933043,113690.0,113680.0,0.60259625]
[1754430530506,5.0181205,113690.0,113680.0,0.60259625]
[1754430530711,5.0181205,113690.0,113680.0,0.60159625]
[1754430530907,5.0181205,113690.0,113680.0,0.00471625]
[1754430531112,5.0181205,113690.0,113680.0,0.60155625]
[1754430531316,5.4940485,113690.0,113680.0,0.60155625]
[1754430531710,5.0181205,113690.0,113680.0,0.62519625]
[1754430531909,4.4933043,113690.0,113680.0,0.62519625]
[1754430532413,4.4933043,113690.0,113680.0,0.67063625]
[1754430532605,4.4933043,113690.0,113680.0,0.71718625]
[1754430533311,4.4933043,113690.0,113680.0,0.71618625]
[1754430534411,4.4933043,113690.0,113680.0,0.89213925]
[1754430535014,4.4842343,113690.0,113680.0,0.89213925]
[1754430535511,4.4933043,113690.0,113680.0,0.89213925]
[1754430536411,4.4933043,113690.0,113680.0,0.71618625]
[1754430536707,4.4933043,113690.0,113680.0,0.89213945]
[1754430538219,3.9684881,113690.0,113680.0,0.89213945]
[1754430538515,4.4933043,113690.0,113680.0,0.89213945]
[1754430538716,3.9684881,113690.0,113680.0,0.89213945]
[1754430538918,4.4933043,113690.0,113680.0,0.89213945]
[1754430539321,4.4933043,113690.0,113680.0,0.71618625]
[1754430540614,4.4933043,113690.0,113680.0,0.89213945]
[1754430545520,4.4933043,113690.0,113680.0,0.71618625]
[1754430546122,4.4933043,113690.0,113680.0,0.89213945]
[1754430556117,4.4933043,113690.0,113680.0,0.00071625]
[1754430556318,0.2480532,113680.0,113670.0,0.2629]
[1754430556524,1.6584856,113680.0,113670.0,0.88778]
[1754430557624,1.6584856,113680.0,113670.0,0.88978]
[1754430557824,4.1032856,113680.0,113670.0,0.88978]
[1754430558531,4.1032856,113680.0,113670.0,0.89078]
[1754430559125,4.1032856,113680.0,113670.0,0.62788]
[1754430566930,3.7424856,113680.0,113670.0,0.62788]
[1754430567131,4.4640856,113680.0,113670.0,0.62788]
[1754430567931,4.4640856,113680.0,113670.0,0.60424]
[1754430568533,4.4640856,113680.0,113670.0,0.62729]
[1754430568736,3.4144532,113680.0,113670.0,0.62729]
[1754430568932,4.4640856,113680.0,113670.0,0.62729]
[1754430569231,4.4640856,113680.0,113670.0,0.60424]
[1754430569836,4.4640856,113680.0,113670.0,0.7208]
[1754430570337,4.4640856,113680.0,113670.0,0.67407]
[1754430577237,3.9301994,113680.0,113670.0,0.8967685]
[1754430577436,3.8993694,113680.0,113670.0,0.8967685]
[1754430577740,3.9392694,113680.0,113670.0,0.8967685]
[1754430577943,3.8671694,113680.0,113670.0,0.8967685]
[1754430578238,3.3423532,113680.0,113670.0,0.8967685]
[1754430578544,3.8671694,113680.0,113670.0,0.8967685]
[1754430579939,3.3423532,113680.0,113670.0,0.8967685]
[1754430580140,3.8671694,113680.0,113670.0,1.4215847]
[1754430580838,3.8671694,113680.0,113670.0,0.8967685]
[1754430582040,3.8671694,113680.0,113670.0,1.4215847]
[1754430582842,3.8671694,113680.0,113670.0,1.6844847]
[1754430583349,3.8979994,113680.0,113670.0,1.6844847]
[1754430585545,3.9070694,113680.0,113670.0,1.6844847]
[1754430586545,3.9070694,113680.0,113670.0,0.4649185]
[1754430586740,3.9070694,113680.0,113670.0,1.0649585]
[1754430587441,3.9070694,113680.0,113670.0,1.0419085]
[1754430587645,4.4318856,113680.0,113670.0,1.0419085]
[1754430587841,4.4318856,113680.0,113670.0,0.86594]
[1754430588744,4.4318856,113680.0,113670.0,0.60304]
[1754430589958,4.4318856,113680.0,113670.0,0.60292]
[1754430592847,3.9070694,113680.0,113670.0,0.60292]
[1754430593551,3.9070694,113680.0,113670.0,0.62594]
[1754430594448,3.9070694,113680.0,113670.0,0.60292]
[1754430595146,4.4318856,113680.0,113670.0,0.60292]
[1754430595650,4.4318856,113680.0,113670.0,0.62594]
[1754430595651,3.9070694,113680.0,113670.0,0.62594]
[1754430597537,3.9070694,113680.0,113670.0,0.60292]
[1754430597742,4.4318856,113680.0,113670.0,0.60292]
[1754430598252,4.4318856,113680.0,113670.0,0.62594]
[1754430598547,4.4318856,113680.0,113670.0,0.60292]
[1754430599349,4.4318856,113680.0,113670.0,0.62594]
[1754430605153,3.3822532,113680.0,113670.0,0.62594]
[1754430605352,4.4318856,113680.0,113670.0,0.62594]
[1754430605856,3.3822532,113680.0,113670.0,0.62594]
[1754430606044,4.4318856,113680.0,113670.0,0.62594]
[1754430606353,4.4318856,113680.0,113670.0,0.64122]
[1754430611159,4.4318856,113680.0,113670.0,0.65111]
[1754430611959,4.4318856,113680.0,113670.0,0.67268]
[1754430613254,3.9070694,113680.0,113670.0,0.7074]
[1754430613554,3.9070694,113680.0,113670.0,0.72197]
[1754430616156,3.1854694,113680.0,113670.0,0.72197]
[1754430616364,3.9070694,113680.0,113670.0,0.72197]
[1754430617667,3.3822532,113680.0,113670.0,0.72197]
[1754430617856,3.9070694,113680.0,113670.0,0.8979385]
[1754430629356,3.9070694,113680.0,113670.0,0.8833685]
[1754430630063,3.9070694,113680.0,113670.0,0.8975385]
[1754430632974,3.9070694,113680.0,113670.0,0.67268]
[1754430633176,4.4318856,113680.0,113670.0,0.67268]
[1754430633373,4.4318856,113680.0,113670.0,0.07276]
[1754430633973,4.4318856,113680.0,113670.0,0.67328]
[1754430634270,4.4318856,113680.0,113670.0,0.07276]
[1754430634574,4.4318856,113680.0,113670.0,0.67432]
[1754430635877,3.3822532,113680.0,113670.0,0.67432]
[1754430636078,4.4318856,113680.0,113670.0,0.67432]
[1754430636262,4.4318856,113680.0,113670.0,0.003]
[1754430636467,4.4318856,113680.0,113670.0,0.60456]
[1754430636673,4.4318856,113680.0,113670.0,0.62727]
[1754430637074,4.4318856,113680.0,113670.0,0.62743]
[1754430637376,4.4318856,113680.0,113670.0,0.60368]
[1754430637567,4.4318856,113680.0,113670.0,0.60468]
[1754430638176,4.4318856,113680.0,113670.0,0.003]
[1754430638370,4.4318856,113680.0,113670.0,0.6036]
[1754430638573,4.4318856,113680.0,113670.0,0.6016]
[1754430639472,0.2169383,113670.0,113660.0,0.2629]
[1754430639680,0.2169383,113670.0,113660.0,0.6018]
[1754430639681,1.6582007,113670.0,113660.0,0.6018]
[1754430640376,1.6582007,113670.0,113660.0,0.62451]
[1754430640769,1.6582007,113670.0,113660.0,0.62551]
[1754430641578,3.7641007,113670.0,113660.0,0.62551]
[1754430641880,3.7641007,113670.0,113660.0,0.62751]
[1754430643581,3.77267998,113670.0,113660.0,0.6048]
[1754430643876,3.77267998,113670.0,113660.0,0.62731]
[1754430645886,3.77267998,113670.0,113660.0,0.02371]
[1754430646085,3.77267998,113670.0,113660.0,0.62531]
[1754430648194,3.77267998,113670.0,113660.0,0.6026]
[1754430648693,3.77267998,113670.0,113660.0,0.62531]
[1754430650598,3.77267998,113670.0,113660.0,0.6026]
[1754430651200,3.77267998,113670.0,113660.0,0.62531]
[1754430652990,0.175998,113650.0,113640.0,1.76712174]
[1754430653189,0.1760289,113630.0,113620.0,0.15907269]
[1754430653395,1.1327051,113630.0,113620.0,0.18395269]
[1754430653595,1.1327051,113630.0,113620.0,0.80432065]
[1754430653982,1.1327051,113630.0,113620.0,0.82048065]
[1754430654197,1.1327051,113630.0,113620.0,0.82974065]
[1754430654693,1.1327051,113630.0,113620.0,0.8613167]
[1754430654892,4.1327051,113630.0,113620.0,0.8613167]
[1754430655188,4.1327051,113630.0,113620.0,0.89958065]
[1754430655587,4.1327051,113630.0,113620.0,0.90258065]
[1754430657296,4.1327051,113630.0,113620.0,0.85774065]
[1754430658301,4.1327051,113630.0,113620.0,0.85574065]
[1754430658603,4.1327051,113630.0,113620.0,0.80732065]
[1754430659000,4.1327051,113630.0,113620.0,0.82348065]
[1754430659203,4.1327051,113630.0,113620.0,0.83274065]
[1754430659799,4.1327051,113630.0,113620.0,0.85274065]
[1754430660002,4.1327051,113630.0,113620.0,0.89958065]
[1754430661402,3.6078889,113630.0,113620.0,0.89958065]
[1754430661603,4.1327051,113630.0,113620.0,0.89958065]
[1754430663500,3.6078889,113630.0,113620.0,0.89958065]
[1754430663700,4.1327051,113630.0,113620.0,0.89958065]
[1754430665508,4.1327051,113630.0,113620.0,0.88459065]
[1754430669805,4.1327051,113630.0,113620.0,0.89958065]
[1754430671215,3.6078889,113630.0,113620.0,0.89958065]
[1754430671417,4.1327051,113630.0,113620.0,0.89958065]
[1754430671809,1.1327051,113630.0,113620.0,0.89958065]
[1754430672010,2.1327051,113630.0,113620.0,0.89958065]
[1754430674417,1.6078889,113630.0,113620.0,0.89958065]
[1754430674609,2.1327051,113630.0,113620.0,0.89958065]
[1754430676718,1.6078889,113630.0,113620.0,0.89958065]
[1754430677020,2.1327051,113630.0,113620.0,0.89958065]
[1754430677221,1.6078889,113630.0,113620.0,0.89958065]
[1754430677422,2.1327051,113630.0,113620.0,0.89958065]
[1754430682018,1.6078889,113630.0,113620.0,0.89958065]
[1754430682225,2.1327051,113630.0,113620.0,0.89958065]
[1754430693223,1.6078889,113630.0,113620.0,0.89958065]
[1754430693533,1.5988189,113630.0,113620.0,0.89958065]
[1754430693729,2.1236351,113630.0,113620.0,0.89958065]
[1754430694027,2.1327051,113630.0,113620.0,0.89958065]
[1754430694225,1.6078889,113630.0,113620.0,0.89958065]
[1754430694425,2.1327051,113630.0,113620.0,0.89958065]